bitfinex/quotes_ETHUSD_20260203
["timestamp","ask_amount","ask_price","bid_price","bid_amount"]
[1770151017608,0.00764107,2301.2,2299.9,0.912]
[1770151017609,0.0011,2301.2,2300.2,12.55556227]
[1770151017794,0.0011,2301.2,2300.3,1.25555623]
[1770151017990,0.0011,2301.2,2300.2,12.55556227]
[1770151018391,0.0011,2301.4,2300.4,12.55556227]
[1770151018599,0.30272844,2302.1,2301.0,12.55556227]
[1770151018600,0.07862117,2302.1,2301.0,12.55556227]
[1770151018836,0.00654107,2303.2,2301.4,12.55556227]
[1770151018837,0.00654107,2303.0,2301.4,12.55556227]
[1770151018975,0.00654107,2303.3,2301.1,0.912]
[1770151018976,0.00654107,2303.3,2301.8,12.55556227]
[1770151019178,0.00654107,2302.2,2301.5,1.25555623]
[1770151019413,0.00654107,2301.6,2301.1,13.46756227]
[1770151019902,0.00654107,2303.3,2301.2,0.2335703]
[1770151020086,0.00654107,2303.3,2301.1,0.912]
[1770151020087,0.00654107,2301.7,2301.1,0.912]
[1770151020291,0.00654107,2301.9,2301.1,0.912]
[1770151020578,0.00654107,2301.3,2301.1,0.912]
[1770151020887,0.00654107,2300.4,2299.6,12.55556227]
[1770151021095,0.00654107,2300.4,2298.2,1.45127085]
[1770151021096,0.00654107,2299.9,2298.6,12.55556227]
[1770151021300,0.00654107,2299.0,2298.6,12.55556227]
[1770151021508,0.00654107,2299.3,2298.7,0.912]
[1770151021822,0.00654107,2299.3,2297.0,12.55556227]
[1770151021823,0.00654107,2297.6,2297.0,12.55556227]
[1770151022129,0.00654107,2297.2,2297.0,0.912]
[1770151022412,0.00654107,2297.2,2296.3,0.912]
[1770151022413,0.00654107,2297.0,2296.3,0.912]
[1770151022580,0.00654107,2297.3,2296.3,0.912]
[1770151022775,0.00654107,2297.2,2296.3,0.912]
[1770151023001,4.35799217,2298.1,2296.3,0.912]
[1770151023002,1.09407743,2298.8,2296.4,12.56210334]
[1770151023319,0.00654107,2298.1,2297.1,0.001]
[1770151023516,0.00654107,2297.9,2297.1,0.001]
[1770151023811,0.00654107,2297.9,2296.3,0.912]
[1770151023812,0.00654107,2297.2,2296.3,0.912]
[1770151024114,0.00654107,2297.1,2296.3,0.912]
[1770151024479,0.00654107,2297.5,2296.3,0.912]
[1770151024877,0.00654107,2298.0,2296.3,0.912]
[1770151025090,0.00654107,2298.7,2296.4,12.79567364]
[1770151025290,0.00654107,2298.5,2296.6,12.78913257]
[1770151025492,0.0011,2299.3,2297.4,12.55556227]
[1770151025709,0.0011,2299.3,2297.5,1.1455703]
[1770151025710,0.00764107,2299.3,2297.5,1.1455703]
[1770151025910,0.0011,2299.3,2297.7,0.2335703]
[1770151026078,0.00654107,2299.2,2297.6,12.55556227]
[1770151026284,0.0011,2299.3,2297.7,12.78913257]
[1770151026511,0.0011,2299.3,2298.0,12.78913257]
[1770151026713,0.0011,2299.3,2298.2,0.2335703]
[1770151026913,0.00654107,2300.1,2298.2,0.2335703]
[1770151026914,0.0011,2300.5,2298.6,0.2335703]
[1770151027144,0.0011,2300.5,2298.1,1.09439625]
[1770151027145,0.00654107,2300.0,2298.1,0.00654107]
[1770151027426,0.00654107,2298.5,2297.4,0.912]
[1770151027610,0.00654107,2298.5,2296.7,0.912]
[1770151027611,0.00654107,2297.2,2296.7,0.912]
[1770151027812,0.00654107,2297.3,2296.7,0.912]
[1770151027813,0.00654107,2297.6,2296.7,0.912]
[1770151028008,0.00654107,2297.5,2296.7,0.912]
[1770151028311,0.00654107,2296.8,2296.7,0.912]
[1770151028537,0.00654107,2298.4,2296.7,0.912]
[1770151028692,0.00654107,2297.3,2296.7,0.912]
[1770151029025,0.00654107,2297.5,2296.7,0.912]
[1770151029618,0.00654107,2297.2,2296.1,0.912]
[1770151030220,0.00654107,2297.3,2296.1,0.912]
[1770151030384,0.00654107,2297.3,2296.1,13.46756227]
[1770151030730,0.00654107,2297.0,2295.9,0.914]
[1770151030883,0.00654107,2296.9,2295.9,0.914]
[1770151031087,0.00654107,2297.0,2295.9,0.914]
[1770151031288,0.00654107,2296.8,2295.9,0.914]
[1770151031892,0.00654107,2296.6,2295.9,0.914]
[1770151032116,0.00654107,2296.4,2295.9,0.914]
[1770151032313,0.00654107,2296.4,2294.5,5.41259997]
[1770151032314,11.94016183,2297.9,2294.9,0.913]
[1770151032524,0.00654107,2296.3,2294.9,2.0023654]
[1770151032753,0.00654107,2296.1,2294.9,0.913]
[1770151033049,0.00654107,2296.0,2294.9,0.913]
[1770151033254,0.00654107,2296.1,2294.9,0.913]
[1770151033413,0.00654107,2296.2,2294.9,0.913]
[1770151033619,0.00654107,2295.8,2294.9,0.913]
[1770151033830,0.00654107,2296.2,2294.9,0.913]
[1770151033831,0.00654107,2296.9,2294.9,2.00235186]
[1770151034014,0.00654107,2296.5,2294.9,13.46856227]
[1770151034250,0.00654107,2296.3,2294.9,13.46856227]
[1770151034548,0.00654107,2296.6,2295.0,12.78913257]
[1770151034766,0.00654107,2296.6,2295.0,12.55556227]
[1770151034767,0.00654107,2296.3,2295.0,12.55556227]
[1770151034918,0.00654107,2296.0,2295.0,12.55556227]
[1770151035125,0.00654107,2296.0,2294.9,0.913]
[1770151035126,0.00654107,2295.5,2294.9,0.913]
[1770151035450,0.00654107,2295.5,2294.2,12.55556227]
[1770151035451,0.913,2294.6,2293.1,0.001]
[1770151035622,0.00654107,2294.7,2291.5,0.913]
[1770151035623,0.00654107,2294.1,2291.5,0.913]
[1770151035827,0.00654107,2294.0,2292.4,1.0905402]
[1770151036026,0.00654107,2293.7,2292.2,4.36246941]
[1770151036219,0.00654107,2294.1,2291.9,4.36307257]
[1770151036220,0.00654107,2294.5,2292.4,1.09053231]
[1770151036440,0.00654107,2294.3,2292.4,14.19137185]
[1770151036752,0.00654107,2295.0,2293.0,0.2335703]
[1770151037059,1.0955552,2295.7,2293.0,0.2335703]
[1770151037060,0.00654107,2296.8,2294.5,0.00654107]
[1770151037225,0.00654107,2297.6,2294.5,0.00654107]
[1770151037226,13.5816714,2297.9,2295.3,0.00654107]
[1770151037547,13.5816714,2297.9,2294.9,0.001]
[1770151037548,0.00654107,2296.6,2294.9,0.001]
[1770151037745,0.00654107,2296.4,2294.9,0.001]
[1770151037913,0.00654107,2296.8,2294.9,0.001]
[1770151038118,0.00654107,2295.6,2294.9,0.001]
[1770151038344,0.00654107,2295.4,2294.9,0.001]
[1770151038543,0.00654107,2297.0,2294.9,0.001]
[1770151038764,0.00654107,2296.9,2294.9,0.001]
[1770151038911,0.00654107,2297.0,2294.9,0.001]
[1770151039250,0.00654107,2297.4,2295.4,0.24011137]
[1770151039457,0.00654107,2297.2,2295.4,0.2335703]
[1770151039617,0.00654107,2297.0,2295.5,0.2335703]
[1770151039818,0.00654107,2296.6,2294.9,0.001]
[1770151040034,0.00654107,2297.0,2294.9,0.001]
[1770151040035,0.00654107,2297.0,2295.0,12.55556227]
[1770151040249,4.35821061,2298.0,2295.1,12.78913257]
[1770151040529,0.00654107,2297.0,2295.1,14.06814583]
[1770151040727,0.00654107,2297.7,2295.5,12.77599866]
[1770151041051,0.0011,2298.6,2296.3,0.00654107]
[1770151041236,0.0011,2298.6,2296.0,0.64875225]
[1770151041237,0.00654107,2298.2,2296.0,0.64875225]
[1770151041428,0.00654107,2298.2,2295.4,2.10822891]
[1770151041429,0.00654107,2296.5,2295.2,1.08922969]
[1770151041625,0.00654107,2296.5,2295.1,2.00224564]
[1770151041626,0.00654107,2296.4,2295.1,2.00224564]
[1770151041932,0.00654107,2296.6,2295.2,0.2335703]
[1770151042125,0.00654107,2296.4,2295.1,2.00224564]
[1770151042326,0.00654107,2296.0,2295.1,2.00226175]
[1770151042527,0.00654107,2297.1,2295.1,2.00226175]
[1770151042726,0.00654107,2297.1,2295.3,1.08918224]
[1770151042966,0.00654107,2297.1,2295.1,0.913]
[1770151042967,0.00654107,2295.8,2295.1,0.913]
[1770151043126,0.00654107,2295.6,2295.1,0.913]
[1770151043332,0.00654107,2295.6,2295.1,0.4135]
[1770151043625,0.00654107,2295.5,2294.9,0.001]
[1770151043959,0.00654107,2295.7,2294.9,0.001]
[1770151044255,0.00654107,2295.4,2294.9,0.001]
[1770151044458,0.00654107,2295.3,2294.9,0.001]
[1770151044969,0.00654107,2295.7,2294.9,0.001]
[1770151045134,1.09510882,2296.6,2294.9,0.001]
[1770151045135,0.00654107,2296.5,2294.9,0.001]
[1770151045480,0.00654107,2296.1,2294.9,0.001]
[1770151045969,0.00654107,2295.8,2294.9,0.001]
[1770151046942,0.00654107,2296.1,2294.9,0.001]
[1770151047255,0.00654107,2296.1,2293.9,0.001]
[1770151047256,0.00654107,2295.0,2293.9,0.001]
[1770151047457,0.00654107,2295.2,2293.9,1.09082179]
[1770151047665,0.00654107,2294.6,2293.9,0.001]
[1770151047837,0.00654107,2294.7,2293.9,0.001]
[1770151048041,0.00654107,2294.2,2293.9,0.001]
[1770151048245,0.00654107,2294.2,2292.6,12.77599866]
[1770151048448,0.00654107,2294.2,2292.6,1.0904356]
[1770151048449,0.00654107,2293.9,2292.6,1.0904356]
[1770151048652,0.00654107,2293.2,2292.5,0.913]
[1770151048899,0.00654107,2294.5,2292.5,0.913]
[1770151049035,0.00654107,2295.0,2292.6,13.86645264]
[1770151049245,0.00654107,2294.4,2292.7,1.21321488]
[1770151049578,0.00654107,2294.3,2292.7,0.2335703]
[1770151049739,0.00654107,2294.3,2292.5,5.27485989]
[1770151049740,0.00654107,2293.8,2292.5,0.913]
[1770151049939,0.00654107,2293.6,2292.5,2.00350807]
[1770151050140,0.0065415,2293.5,2292.5,0.913]
[1770151050458,0.0065415,2293.4,2292.5,0.913]
[1770151050661,0.0065415,2293.3,2292.5,0.913]
[1770151050875,0.0065415,2293.7,2292.9,0.001]
[1770151051086,0.0065415,2294.0,2292.9,0.001]
[1770151051365,0.0065415,2293.9,2292.9,0.001]
[1770151051577,0.0065415,2293.6,2292.9,0.001]
[1770151051736,0.0065415,2293.4,2292.9,0.001]
[1770151051933,0.0065415,2293.7,2292.9,0.001]
[1770151052237,0.0065415,2293.4,2291.4,0.1059068]
[1770151052440,0.0065415,2292.7,2291.4,4.46999394]
[1770151052686,0.0065415,2293.0,2291.8,1.09082065]
[1770151052979,0.0065415,2292.9,2291.5,1.09098843]
[1770151053175,0.0065415,2292.9,2291.4,0.1059068]
[1770151053176,0.00654393,2292.5,2291.4,0.1059068]
[1770151053470,0.00654393,2292.2,2291.4,0.1059068]
[1770151053675,0.00654393,2292.9,2291.4,1.19692375]
[1770151053961,0.00654393,2292.3,2291.4,0.1059068]
[1770151054162,0.00654393,2292.4,2291.4,0.1059068]
[1770151054364,0.00654493,2292.4,2291.4,0.1059068]
[1770151054534,0.00654493,2292.3,2291.4,0.1059068]
[1770151054737,0.00654493,2292.2,2291.4,0.1059068]
[1770151054939,0.00654493,2291.7,2291.4,0.1059068]
[1770151055234,0.00654493,2291.7,2290.0,0.001]
[1770151055235,0.00654578,2291.2,2290.3,0.915]
[1770151055456,0.00654578,2291.0,2290.3,0.915]
[1770151055634,0.00654578,2290.6,2290.3,0.001]
[1770151056062,0.00654578,2291.0,2290.3,0.001]
[1770151056063,0.00654893,2291.6,2290.3,0.001]
[1770151056371,0.29853122,2291.7,2290.4,0.914]
[1770151056575,0.29853122,2291.7,2290.5,0.2335703]
[1770151056869,0.29853122,2291.7,2290.3,1.09255823]
[1770151057170,0.00654893,2292.4,2290.3,0.001]
[1770151057347,0.00654893,2292.0,2290.4,0.2335703]
[1770151057540,0.00654893,2292.0,2290.3,12.77699866]
[1770151057541,0.00654893,2291.4,2290.3,0.001]
[1770151057875,0.00654893,2292.4,2290.3,0.001]
[1770151058175,0.00654893,2292.4,2290.0,2.00667044]
[1770151058176,0.00654893,2291.9,2290.1,0.914]
[1770151058372,0.00654893,2291.7,2290.1,0.914]
[1770151058664,0.00654893,2291.8,2290.2,0.2335703]
[1770151058866,1.09690248,2292.9,2290.4,0.00654893]
[1770151059078,1.090622,2292.3,2290.4,1.09803328]
[1770151059239,0.00654893,2291.9,2290.4,1.09148435]
[1770151059444,0.00654893,2291.8,2290.4,1.09148435]
[1770151060071,0.00654893,2291.9,2290.4,1.09148435]
[1770151060376,0.00654893,2291.9,2289.9,0.001]
[1770151060377,0.00654893,2291.3,2289.9,0.001]
[1770151060542,0.00654893,2291.0,2289.9,0.001]
[1770151060740,0.00654893,2290.9,2289.9,0.001]
[1770151061047,0.00654893,2291.0,2289.9,0.001]
[1770151061048,0.00654907,2291.3,2289.9,0.001]
[1770151061251,0.00654907,2291.2,2289.9,0.001]
[1770151061451,0.00654907,2291.4,2289.9,0.001]
[1770151061658,0.00654907,2290.4,2289.9,0.001]
[1770151061862,0.00654907,2290.3,2289.9,0.001]
[1770151062186,0.00654907,2290.3,2289.1,4.36952703]
[1770151062187,0.00654907,2290.4,2289.4,1.09196995]
[1770151062341,0.00654993,2290.9,2289.4,1.09196995]
[1770151062543,0.00654993,2290.6,2289.4,1.09196995]
[1770151062856,0.00654993,2290.7,2289.4,1.09196995]
[1770151063178,0.00654993,2290.7,2289.1,0.001]
[1770151063179,0.00655007,2290.1,2289.1,0.001]
[1770151063483,0.00655007,2290.2,2289.1,0.001]
[1770151063683,0.00655007,2290.3,2289.1,0.001]
[1770151063846,0.00655007,2290.1,2289.1,0.001]
[1770151064163,0.00655136,2290.1,2289.1,0.001]
[1770151064369,4.36387176,2291.6,2289.1,12.77699866]
[1770151064569,0.00655136,2290.9,2289.3,0.001]
[1770151064768,0.00655136,2290.5,2289.3,0.001]
[1770151064974,0.00655136,2289.7,2289.3,0.001]
[1770151065272,0.00655136,2290.4,2289.3,0.001]
[1770151065273,0.00655164,2290.3,2289.3,0.001]
[1770151065479,0.00655164,2290.0,2289.3,0.001]
[1770151065680,0.00655164,2289.8,2289.3,0.001]
[1770151065853,0.00655164,2289.4,2289.1,0.001]
[1770151066051,0.00655236,2289.4,2289.1,0.001]
[1770151066253,0.00655236,2289.5,2289.1,0.001]
[1770151066454,0.00655236,2289.5,2287.4,0.10895164]
[1770151066455,0.00655236,2289.2,2287.4,1.09290494]
[1770151066670,12.42077274,2289.6,2287.3,2.55876137]
[1770151066671,19.99566288,2290.3,2288.1,4.3704191]
[1770151066873,0.00655236,2289.6,2288.4,1.09244303]
[1770151067042,0.00655236,2290.3,2288.2,4.3698654]
[1770151067244,0.00655236,2290.3,2288.2,1.09256183]
[1770151067245,0.00655307,2289.9,2288.2,1.09256183]
[1770151067684,0.00655307,2289.9,2288.1,2.00758218]
[1770151067685,0.00655307,2289.8,2288.1,2.00758218]
[1770151067857,0.00655307,2289.8,2288.1,0.915]
[1770151068051,0.00655307,2290.0,2288.1,2.00757891]
[1770151068253,0.00655322,2290.0,2288.1,2.00757891]
[1770151068552,1.0980299,2290.5,2288.1,2.00757891]
[1770151068553,0.00655322,2290.9,2288.7,0.00655322]
[1770151068857,0.00655322,2290.9,2288.4,0.00655322]
[1770151068858,0.00655322,2290.7,2288.6,0.00655322]
[1770151069069,4.36570662,2290.6,2288.6,0.00655322]
[1770151069248,4.36570662,2290.6,2288.3,0.00655322]
[1770151069249,0.00655322,2290.3,2288.3,1.09248803]
[1770151069452,0.00655322,2290.3,2288.3,1.09250614]
[1770151069453,0.00655322,2290.1,2288.3,1.09250614]
[1770151069658,0.00655322,2290.1,2288.1,0.915]
[1770151069871,0.00655322,2290.5,2288.4,0.00655322]
[1770151070074,1.30582259,2290.5,2289.0,0.00655322]
[1770151070285,12.80187622,2291.3,2289.0,0.00655322]
[1770151070286,1.09771829,2291.2,2289.2,0.00655322]
[1770151070486,0.00655322,2290.8,2288.6,0.00655322]
[1770151070703,0.00655322,2290.4,2288.3,0.00655322]
[1770151070889,0.00655322,2289.6,2288.1,0.915]
[1770151071064,0.0065535,2289.5,2288.1,0.915]
[1770151071265,0.00655322,2289.9,2288.1,0.915]
[1770151071266,7.69039572,2290.3,2288.1,0.915]
[1770151071504,1.09822895,2290.1,2288.1,0.915]
[1770151071679,0.0065535,2289.6,2288.1,0.915]
[1770151071896,0.0065535,2289.1,2288.1,0.915]
[1770151072072,0.0065535,2288.7,2288.1,0.915]
[1770151072277,0.00655422,2289.6,2288.1,2.00757745]
[1770151072479,0.00655422,2289.9,2288.2,0.2335703]
[1770151072685,0.00655422,2289.9,2287.8,4.37699257]
[1770151072686,0.00655422,2288.8,2287.0,0.1059068]
[1770151072866,0.00655422,2288.6,2287.0,12.01692254]
[1770151073066,0.00655422,2288.6,2286.3,12.01692254]
[1770151073067,0.00655651,2288.0,2286.3,12.01692254]
[1770151073374,0.00655651,2288.5,2286.8,12.01692254]
[1770151073578,0.00655651,2288.3,2286.8,12.01692254]
[1770151073786,0.00655651,2288.3,2286.3,4.3802444]
[1770151073787,0.00655651,2288.2,2286.3,4.37368789]
[1770151073967,0.00655651,2287.7,2286.3,1.0934352]
[1770151074167,0.00655881,2287.6,2285.9,0.916]
[1770151074424,0.00655881,2287.7,2286.3,1.09346412]
[1770151074709,0.00655881,2287.7,2285.9,0.916]
[1770151074710,0.00655881,2287.0,2285.9,0.916]
[1770151075013,0.00655881,2287.2,2285.9,0.916]
[1770151075014,0.00655881,2288.1,2286.3,1.09344658]
[1770151075215,0.00656038,2287.5,2286.0,1.09361329]
[1770151075364,0.00656038,2287.7,2286.0,1.09361329]
[1770151075706,0.00656038,2287.4,2285.9,2.0096487]
[1770151075993,0.00656038,2287.6,2285.9,2.0096487]
[1770151076203,0.00656038,2287.6,2285.9,0.916]
[1770151076204,0.00656038,2287.2,2285.9,0.916]
[1770151076374,0.00656038,2287.6,2285.9,0.916]
[1770151076375,0.00656038,2288.0,2285.9,2.00964547]
[1770151076577,0.00656038,2287.7,2285.9,14.85388047]
[1770151076788,0.00656038,2288.3,2286.7,0.2335703]
[1770151076988,0.00656038,2288.6,2286.7,0.2335703]
[1770151076989,0.00656038,2288.8,2286.7,0.2335703]
[1770151077191,0.00656038,2288.6,2286.8,1.09323071]
[1770151077496,0.00656038,2288.6,2286.7,4.60649316]
[1770151077497,0.00656038,2288.3,2286.7,1.09326129]
[1770151077666,0.00656038,2288.2,2286.7,1.09326129]
[1770151077870,0.00656038,2288.1,2286.7,1.09327822]
[1770151078063,0.00656038,2288.0,2286.5,1.0943441]
[1770151078282,0.00656038,2288.1,2286.5,0.001]
[1770151078576,0.00656038,2288.1,2286.6,1.0932974]
[1770151078898,0.00656038,2288.1,2286.7,1.09326869]
[1770151079198,0.00656038,2288.1,2286.5,0.001]
[1770151079199,0.00656038,2287.9,2286.5,4.60792395]
[1770151079402,0.00656038,2287.9,2286.5,1.09437415]
[1770151079614,0.00656038,2287.7,2286.5,1.09437415]
[1770151079767,0.00656038,2287.3,2286.5,0.001]
[1770151079973,0.00656038,2287.7,2286.5,0.001]
[1770151080173,0.00656038,2288.3,2286.5,0.001]
[1770151080495,0.00656038,2287.2,2286.5,0.001]
[1770151080802,0.00656038,2287.6,2286.5,0.001]
[1770151080803,0.00656038,2288.6,2286.5,0.2345703]
[1770151080970,0.00656038,2287.8,2286.5,0.001]
[1770151081172,0.00656038,2288.7,2286.5,0.001]
[1770151081173,0.00656038,2289.0,2286.7,0.2335703]
[1770151081518,0.00656038,2289.0,2286.5,19.04989184]
[1770151081519,0.00656038,2287.3,2286.5,0.001]
[1770151081709,0.00656038,2287.2,2286.5,0.001]
[1770151081867,0.00656038,2287.6,2286.5,0.001]
[1770151081868,0.00656038,2288.3,2286.5,1.09437163]
[1770151082072,0.00656038,2288.3,2286.5,1.09434118]
[1770151082282,0.00656038,2288.7,2286.6,13.0778053]
[1770151082482,0.00656038,2288.5,2286.7,12.85079538]
[1770151082687,0.00656038,2289.6,2287.2,0.00656038]
[1770151082897,0.00656038,2288.5,2287.3,0.916]
[1770151083174,0.00656038,2288.3,2287.3,0.916]
[1770151083376,0.00656038,2288.2,2287.3,0.916]
[1770151083602,0.00656038,2288.3,2287.3,0.916]
[1770151083801,0.00656038,2288.5,2287.3,0.916]
[1770151084098,0.00656038,2288.6,2287.3,0.916]
[1770151084295,0.00656038,2289.1,2287.3,0.916]
[1770151084473,1.3212565,2289.1,2287.3,0.916]
[1770151084675,0.00656038,2290.1,2287.6,0.00656038]
[1770151084893,0.00656038,2290.1,2287.5,12.946635]
[1770151084894,0.00656038,2289.8,2287.5,0.00656038]
[1770151085073,0.00656038,2289.8,2287.2,5.77102439]
[1770151085074,0.00656038,2289.3,2287.2,1.09301499]
[1770151085269,7.66680955,2289.4,2287.5,0.917]
[1770151085602,0.76733699,2289.3,2287.7,0.00656038]
[1770151085818,0.00656038,2290.4,2288.3,0.00656038]
[1770151085819,1.09156005,2290.3,2288.3,0.00656038]
[1770151086119,0.00656038,2290.1,2288.4,0.917]
[1770151086275,0.00656038,2290.2,2288.4,0.917]
[1770151087011,0.00656038,2290.4,2288.5,0.2335703]
[1770151087310,0.00656038,2290.6,2288.2,12.844235]
[1770151087311,0.00656038,2290.5,2288.2,12.844235]
[1770151087528,0.00656038,2290.8,2288.6,0.00656038]
[1770151087679,1.09890402,2291.0,2288.8,0.00656038]
[1770151087874,0.0011,2291.0,2289.2,0.00656038]
[1770151088076,0.4377935,2291.0,2289.3,0.92356038]
[1770151088284,7.66680955,2290.7,2288.5,1.39905745]
[1770151088609,0.00656038,2290.0,2288.0,1.09265179]
[1770151088909,0.00656038,2289.5,2288.0,1.09265179]
[1770151089081,0.00656038,2289.5,2287.9,1.0926806]
[1770151089276,0.00656038,2289.5,2287.0,3.67008612]
[1770151089277,0.00656038,2288.6,2287.2,1.39905745]
[1770151089499,0.00656038,2288.6,2287.0,0.916]
[1770151089675,0.00656038,2289.0,2287.3,1.09296863]
[1770151089881,0.00656038,2289.0,2287.4,0.85460924]
[1770151090079,0.00656038,2289.0,2287.3,1.09296863]
[1770151090080,0.00656038,2288.8,2287.5,0.85460924]
[1770151090291,0.00656038,2288.8,2287.3,1.09296863]
[1770151090292,0.00656038,2288.9,2287.3,1.09296863]
[1770151090505,0.00656038,2288.9,2287.4,0.85638934]
[1770151090811,0.00656038,2288.5,2287.4,0.916]
[1770151091106,0.00656038,2288.9,2287.4,0.916]
[1770151091107,0.00656038,2289.4,2287.5,1.22814094]
[1770151091304,0.00656038,2289.4,2287.4,0.916]
[1770151091305,0.00656038,2289.4,2287.6,1.22847969]
[1770151091475,0.00656038,2289.3,2287.7,1.949454]
[1770151091677,0.00656038,2289.2,2287.8,0.85665338]
[1770151092022,0.00656038,2289.2,2287.0,0.001]
[1770151092023,0.00656038,2287.7,2287.0,0.001]
[1770151092315,0.00656038,2289.0,2287.0,1.09412281]
[1770151092526,0.00656038,2289.3,2287.1,14.14042823]
[1770151092817,0.00656038,2288.9,2287.3,1.39905745]
[1770151093116,0.00656038,2289.3,2287.5,0.2335703]
[1770151093279,0.00656038,2290.0,2287.7,1.63262775]
[1770151093480,11.9992223,2290.6,2287.7,1.63262775]
[1770151093481,0.00656038,2290.5,2288.0,14.24985283]
[1770151093698,0.00656038,2290.5,2288.2,1.39905745]
[1770151093699,0.00656038,2289.8,2288.2,1.39905745]
[1770151093899,0.00656038,2290.2,2288.4,1.39905745]
[1770151094180,0.00656038,2290.1,2288.5,1.7726903]
[1770151094380,0.00656038,2290.2,2288.6,0.37363285]
[1770151094580,0.00766038,2291.2,2289.1,0.00656038]
[1770151094581,0.0011,2291.0,2289.1,0.00656038]
[1770151094876,0.0011,2291.0,2289.2,1.77925068]
[1770151095208,0.0011,2291.0,2289.5,1.39905745]
[1770151095506,0.0011,2291.0,2289.6,0.37363285]
[1770151095507,0.00656038,2290.9,2289.6,0.37363285]
[1770151095682,0.0011,2291.0,2289.0,1.39905745]
[1770151095683,0.0011,2291.0,2289.4,1.07423998]
[1770151095891,0.0011,2291.0,2289.4,4.3678362]
[1770151096085,0.0011,2291.0,2289.6,1.09188827]
[1770151096292,0.0011,2291.0,2289.7,0.37323431]
[1770151096489,0.0011,2291.0,2289.8,0.916]
[1770151098296,0.0011,2291.0,2289.6,0.916]
[1770151098496,0.0011,2291.0,2289.6,1.07423998]
[1770151098695,0.0011,2291.0,2289.9,0.00656038]
[1770151098880,0.0011,2291.0,2290.1,0.00656038]
[1770151099081,0.0011,2291.0,2290.2,0.00656038]
[1770151099281,0.0011,2291.0,2290.1,0.00656038]
[1770151099481,0.0011,2291.0,2290.0,0.00656038]
[1770151099681,0.0011,2292.1,2290.9,0.00656038]
[1770151099923,0.0011,2292.1,2290.5,0.00656038]
[1770151099924,1.09181128,2292.1,2290.2,1.08080036]
[1770151100223,0.54546227,2292.0,2290.1,0.00656038]
[1770151100406,0.54546227,2292.0,2290.2,0.00656038]
[1770151100615,0.54546227,2292.0,2290.5,0.00656038]
[1770151100924,1.09181072,2292.1,2290.6,0.00656038]
[1770151101210,0.0011,2292.1,2290.6,0.00656038]
[1770151101422,0.0011,2292.1,2290.9,0.00656038]
[1770151101585,0.0011,2292.1,2290.9,1.09782909]
[1770151101787,0.0011,2292.1,2290.9,0.00656038]
[1770151101987,0.0011,2292.1,2290.2,1.08080036]
[1770151102299,0.0011,2292.1,2290.3,1.09153841]
[1770151102601,0.00656038,2291.7,2290.0,2.00767582]
[1770151102804,0.00656038,2291.8,2290.0,2.00767399]
[1770151103009,0.00656038,2291.8,2290.1,1.09164893]
[1770151103313,0.00656038,2291.7,2290.0,0.916]
[1770151103611,0.00656038,2291.7,2289.4,11.9087627]
[1770151103612,0.00656038,2291.3,2289.4,11.9087627]
[1770151103812,0.00656038,2291.3,2289.4,12.83132308]
[1770151103980,0.00656038,2291.2,2289.4,0.916]
[1770151104182,0.00656038,2291.6,2289.4,0.916]
[1770151104183,1.09090033,2291.7,2289.8,1.09175867]
[1770151104421,0.54608487,2291.6,2289.7,0.00656038]
[1770151104616,0.54608487,2291.6,2289.7,1.09837748]
[1770151104786,0.55264525,2291.6,2289.7,1.09181318]
[1770151104987,0.54608487,2291.6,2289.8,1.09176569]
[1770151105304,0.00656038,2292.0,2290.0,1.0916894]
[1770151105507,1.09837221,2292.1,2290.0,1.0916894]
[1770151105508,0.00766038,2292.1,2290.2,1.09160771]
[1770151105838,0.00766038,2292.1,2291.0,0.00656038]
[1770151105839,0.0011,2292.1,2291.0,0.00656038]
[1770151105986,0.003,2292.6,2291.7,0.00656038]
[1770151106313,0.003,2292.6,2291.3,0.00656038]
[1770151106613,0.003,2292.6,2291.1,0.916]
[1770151106614,0.0011,2291.8,2291.1,0.916]
[1770151107111,0.003,2292.6,2290.7,0.00656038]
[1770151107112,0.0011,2292.0,2290.7,0.00656038]
[1770151107295,0.0011,2292.0,2291.2,0.00656038]
[1770151107492,0.0011,2292.0,2291.1,0.92256038]
[1770151107493,0.0011,2292.0,2291.1,0.916]
[1770151107719,0.0011,2292.0,2291.2,1.09112451]
[1770151107932,0.003,2292.6,2291.2,1.09768489]
[1770151108224,0.003,2292.6,2291.3,0.00656038]
[1770151108411,0.003,2292.6,2291.2,1.09768489]
[1770151108612,0.003,2292.6,2291.3,0.00656038]
[1770151108813,0.003,2292.6,2291.5,0.00656038]
[1770151109023,0.003,2292.6,2291.4,0.00656038]
[1770151109527,0.003,2292.6,2291.5,1.09098843]
[1770151109740,0.0011,2293.3,2292.1,0.00656038]
[1770151109935,0.0011,2293.3,2292.4,0.00656038]
[1770151110101,0.0011,2293.3,2292.5,0.916]
[1770151110504,0.00656038,2294.2,2292.5,0.916]
[1770151110505,12.95555399,2294.8,2292.6,0.00656038]
[1770151110727,0.00656038,2295.3,2293.1,0.00656038]
[1770151110728,1.2955554,2294.7,2293.1,0.00656038]
[1770151110934,5.20378893,2296.1,2293.3,0.00656038]
[1770151111113,5.20378893,2296.1,2293.8,0.00656038]
[1770151111114,0.00656038,2295.6,2293.8,0.00656038]
[1770151111434,0.00656038,2295.4,2293.7,0.916]
[1770151111734,0.00656038,2295.4,2292.7,0.916]
[1770151111735,0.00656038,2294.8,2292.7,0.916]
[1770151112035,0.00656038,2294.3,2292.7,0.916]
[1770151112236,1.3134872,2296.0,2292.7,0.916]
[1770151112409,0.00656038,2294.6,2292.8,0.2335703]
[1770151112609,0.00656038,2294.0,2292.5,1.09048642]
[1770151112910,0.00656038,2294.0,2292.3,0.915]
[1770151113123,0.00656038,2293.9,2292.3,2.00557959]
[1770151113326,0.00656038,2294.0,2292.3,2.00559188]
[1770151113631,0.00656038,2293.8,2292.3,0.915]
[1770151113809,0.00656038,2293.8,2292.3,2.00560247]
[1770151114423,0.00656038,2293.8,2292.3,0.915]
[1770151114806,0.00656038,2293.8,2292.3,2.00559322]
[1770151115001,0.00656038,2294.0,2292.3,2.00559322]
[1770151115335,0.00656038,2293.8,2292.3,2.00559841]
[1770151115510,0.00656038,2293.8,2292.3,0.915]
[1770151115708,0.00656038,2293.4,2291.8,1.09083868]
[1770151116047,0.00656038,2293.4,2291.5,0.54683269]
[1770151116048,0.9454,2294.9,2292.3,1.09059797]